bitfinex/quotes_ETHUSD_20240618
["timestamp","ask_amount","ask_price","bid_price","bid_amount"]
[1718698011211,0.81,3452.5,3451.6,2.3604]
[1718698011395,0.81,3452.5,3451.7,0.40494058]
[1718698011921,0.86,3452.1,3451.3,2.4392]
[1718698015328,3.0,3452.4,3451.3,3.2992]
[1718698015528,0.86,3452.3,3451.4,2.4825]
[1718698015902,3.0,3452.4,3451.4,2.4825]
[1718698016097,3.86,3452.4,3451.5,0.33425]
[1718698016500,3.0,3452.4,3451.6,2.4825]
[1718698017036,3.58758371,3452.8,3451.6,2.4825]
[1718698017326,0.58758371,3452.8,3451.6,2.4825]
[1718698017629,0.86,3452.5,3451.6,2.4825]
[1718698017800,0.86,3452.5,3451.7,2.796075]
[1718698020202,0.58758371,3452.8,3451.7,3.656075]
[1718698020434,0.86,3452.7,3451.8,2.4284]
[1718698022619,0.86,3452.5,3451.8,2.4284]
[1718698022939,0.86,3452.3,3451.8,2.4284]
[1718698023818,0.86,3451.9,3449.8,2.3503]
[1718698024013,0.86,3451.7,3449.8,2.3503]
[1718698024218,0.86,3451.7,3450.9,2.3503]
[1718698025643,0.86,3451.7,3451.0,0.55]
[1718698026226,0.86,3451.9,3451.0,0.55]
[1718698026419,0.86,3451.9,3451.1,0.37603]
[1718698027550,0.86,3451.2,3450.2,0.86]
[1718698027848,0.86,3451.2,3450.3,2.4976]
[1718698029445,0.86,3451.2,3448.7,4.21712]
[1718698029446,0.86,3450.8,3448.7,2.3674]
[1718698029650,0.86,3450.8,3449.9,2.3674]
[1718698031261,3.0,3450.9,3450.1,0.86]
[1718698031428,3.0,3451.2,3450.2,0.32274]
[1718698032012,3.0,3451.2,3450.3,2.3392638]
[1718698032645,3.0,3451.2,3450.3,2.2813]
[1718698040149,2.3081,3451.1,3450.3,2.2813]
[1718698040338,0.83081,3451.0,3450.3,2.2813]
[1718698040554,3.83081,3451.0,3450.3,2.2813]
[1718698043950,3.0,3451.2,3450.3,2.2813]
[1718698044149,3.0,3451.2,3450.5,2.4117]
[1718698044354,0.28632003,3452.1,3450.7,2.4117]
[1718698044559,6.0,3452.1,3450.7,2.4117]
[1718698044757,6.30236453,3452.1,3450.8,0.55]
[1718698045055,1.08002645,3452.0,3450.8,0.55]
[1718698046369,1.08002645,3452.0,3450.9,2.3317]
[1718698046668,6.30236453,3452.1,3450.9,2.3317]
[1718698052732,3.30236453,3452.1,3450.9,2.3317]
[1718698052937,0.30236453,3452.1,3450.9,2.3317]
[1718698053267,0.28464328,3452.3,3451.0,0.55]
[1718698053466,0.62846433,3452.2,3451.1,2.2598]
[1718698055572,0.858,3451.9,3451.1,2.2598]
[1718698058441,0.30233198,3452.3,3451.8,0.858]
[1718698058638,1.45295824,3452.8,3452.2,2.4103]
[1718698060371,1.45295824,3452.8,3452.3,0.858]
[1718698060568,1.16022396,3453.2,3452.4,0.32683]
[1718698060758,0.30222396,3453.2,3452.3,0.858]
[1718698060967,0.858,3453.1,3452.3,0.858]
[1718698061473,0.858,3453.1,3452.2,2.4103]
[1718698061474,0.30222396,3453.2,3452.2,2.4103]
[1718698077406,2.057,3452.9,3452.2,2.4103]
[1718698077807,0.30222396,3453.2,3452.2,2.4103]
[1718698078483,0.30222396,3453.2,3452.2,2.65133]
[1718698081506,0.30222396,3453.2,3452.2,2.4103]
[1718698081690,0.857,3452.5,3452.2,2.4103]
[1718698081888,0.857,3452.3,3452.2,2.4103]
[1718698083106,0.857,3452.3,3452.0,2.3349]
[1718698083918,0.857,3452.5,3452.0,2.3349]
[1718698084212,0.857,3452.5,3452.1,0.23349]
[1718698084582,3.0,3452.9,3452.1,0.23349]
[1718698084784,0.857,3452.6,3452.0,2.3349]
[1718698085492,3.0,3452.9,3452.0,2.3349]
[1718698085698,0.857,3452.7,3452.0,2.3349]
[1718698086985,0.857,3452.5,3452.0,2.3349]
[1718698087888,0.857,3452.5,3452.0,2.3069]
[1718698089018,0.857,3452.5,3452.0,2.1629]
[1718698089320,0.857,3452.3,3452.0,2.1629]
[1718698089708,0.857,3452.1,3451.1,0.857]
[1718698090106,0.857,3452.1,3450.0,3.056]
[1718698090431,0.857,3451.3,3450.3,0.857]
[1718698090623,0.857,3451.1,3449.1,3.056]
[1718698090925,0.857,3451.1,3450.0,0.857]
[1718698091093,0.857,3450.9,3450.0,0.857]
[1718698091509,2.059,3451.6,3449.5,2.059]
[1718698091821,2.659,3451.6,3449.5,2.059]
[1718698091987,3.0,3451.5,3449.6,2.3734]
[1718698092390,0.6,3451.6,3449.8,2.3734]
[1718698092700,0.6,3451.6,3450.0,2.3734]
[1718698093223,0.6,3451.6,3450.2,2.4938]
[1718698093522,0.6,3451.6,3450.3,2.55175314]
[1718698093710,0.6,3451.6,3450.4,0.55]
[1718698097390,0.6,3451.6,3450.3,2.4938]
[1718698097391,2.059,3451.5,3450.3,2.4938]
[1718698097613,3.0,3451.4,3450.3,2.4938]
[1718698097806,3.0,3451.4,3449.2,2.059]
[1718698097807,2.3853,3451.2,3449.3,2.4457]
[1718698098122,2.059,3451.1,3449.3,2.4457]
[1718698098326,0.73353364,3451.0,3449.4,0.45047]
[1718698098826,3.73353364,3451.0,3449.4,0.45047]
[1718698099806,4.03583705,3451.0,3449.5,0.55]
[1718698110729,0.30230341,3451.0,3449.6,2.41626493]
[1718698110905,0.30230341,3451.0,3449.7,0.55]
[1718698111101,3.0,3451.1,3449.7,0.55]
[1718698111307,2.3853,3451.2,3449.7,0.55]
[1718698112335,2.6874901,3451.2,3449.7,0.55]
[1718698112534,3.86874901,3451.1,3449.8,0.29083]
[1718698112837,3.86874901,3451.1,3449.9,0.55]
[1718698113408,4.72674901,3451.1,3450.1,0.858]
[1718698114738,3.86874901,3451.1,3450.1,0.858]
[1718698115044,3.0,3451.1,3450.5,0.858]
[1718698115408,2.3853,3451.2,3450.5,0.858]
[1718698115740,5.3853,3451.2,3450.5,0.858]
[1718698116335,5.3853,3451.2,3450.3,0.858]
[1718698116531,5.3853,3451.2,3450.1,2.2687]
[1718698116736,6.03802271,3451.2,3450.3,0.858]
[1718698125644,3.0,3451.2,3450.6,0.858]
[1718698125826,2.2857,3451.5,3450.6,0.858]
[1718698126020,5.2857,3451.8,3450.9,0.858]
[1718698126428,6.1437,3451.8,3450.9,0.858]
[1718698126628,0.80552738,3451.7,3450.9,0.858]
[1718698127747,3.80552738,3451.7,3450.9,0.858]
[1718698129046,3.80552738,3451.7,3450.6,2.31455724]
[1718698129247,3.80552738,3451.7,3450.8,0.858]
[1718698133041,3.0,3451.7,3451.1,0.858]
[1718698133248,1.9115738,3452.0,3451.2,0.55]
[1718698135326,2.3742,3451.9,3449.9,2.3267]
[1718698135518,5.3742,3451.9,3451.0,3.1847]
[1718698141054,5.3742,3451.9,3451.0,0.858]
[1718698141242,0.81437738,3451.8,3451.0,0.858]
[1718698141617,0.858,3451.6,3450.3,2.2535]
[1718698141821,0.858,3451.6,3450.7,0.858]
[1718698142020,3.858,3451.6,3450.7,0.858]
[1718698142222,1.01261774,3451.5,3450.7,0.858]
[1718698145865,3.0,3451.6,3450.8,0.05795585]
[1718698146170,2.4538,3451.7,3451.1,0.858]
[1718698150858,2.4538,3451.7,3451.0,2.3151]
[1718698150859,2.4538,3451.7,3450.9,1.408]
[1718698151764,3.0,3451.9,3451.2,0.858]
[1718698152056,2.3941,3452.1,3451.2,0.858]
[1718698152057,2.3941,3452.1,3451.5,0.858]
[1718698152955,3.858,3452.3,3451.5,0.858]
[1718698153260,3.85275062,3452.3,3451.5,0.858]
[1718698154355,3.0,3452.3,3451.5,0.858]
[1718698154556,3.0,3452.4,3451.7,0.858]
[1718698154764,3.0,3452.4,3451.6,2.4365]
[1718698155056,3.858,3452.5,3451.6,2.4365]
[1718698155231,4.14648721,3452.5,3451.7,0.858]
[1718698155861,4.14648721,3452.5,3451.8,0.60793471]
[1718698156162,2.4331,3453.1,3452.3,0.858]
[1718698157542,5.4331,3453.1,3452.3,0.858]
[1718698159553,6.2911,3453.1,3452.3,0.858]
[1718698159872,7.24951474,3453.1,3452.3,0.858]
[1718698160372,4.81641474,3453.1,3452.3,0.858]
[1718698160572,3.0,3453.0,3452.3,0.858]
[1718698160772,0.95841474,3453.1,3452.3,0.858]
[1718698162245,0.858,3453.2,3452.3,0.858]
[1718698169084,0.858,3453.0,3452.1,3.1084]
[1718698169253,0.858,3453.0,3452.2,0.55]
[1718698169954,0.858,3453.2,3452.2,0.55]
[1718698174488,0.858,3453.2,3452.2,0.60792671]
[1718698174689,1.52894427,3453.2,3452.2,0.60792671]
[1718698174983,1.52894427,3453.2,3452.3,0.858]
[1718698178171,0.67094427,3453.2,3452.4,2.3756]
[1718698178495,0.858,3453.2,3452.4,2.3756]
[1718698178981,0.30279525,3453.3,3453.1,2.3756]
[1718698179157,3.858,3454.0,3453.1,2.61316]
[1718698179359,0.858,3454.0,3453.1,2.3756]
[1718698180567,2.3509,3454.1,3453.1,2.3756]
[1718698180974,3.2089,3454.1,3453.2,0.858]
[1718698181291,2.63294843,3454.1,3453.2,0.858]
[1718698181468,3.49094843,3454.1,3453.2,0.858]
[1718698181665,4.14004327,3454.1,3453.2,0.858]
[1718698182676,3.0,3454.0,3453.2,0.858]
[1718698182992,0.02640841,3453.9,3453.2,0.858]
[1718698183363,0.02640841,3453.9,3453.1,2.3756]
[1718698185881,0.858,3453.8,3453.1,2.3756]
[1718698186082,0.88439478,3453.8,3453.1,2.3756]
[1718698190196,1.57283374,3453.8,3453.1,2.3756]
[1718698190398,1.57283374,3453.8,3452.3,2.4464]
[1718698190691,0.858,3453.6,3452.9,2.4464]
[1718698191365,0.0263539,3453.5,3452.9,2.4464]
[1718698192500,1.54643896,3453.8,3452.9,2.4464]
[1718698192678,0.02638894,3453.4,3452.9,2.4464]
[1718698192994,0.02637531,3453.3,3452.9,2.77684]
[1718698193204,0.858,3453.8,3452.9,2.77684]
[1718698193503,0.02642982,3453.7,3452.9,2.4464]
[1718698195370,0.02642982,3453.7,3453.0,0.858]
[1718698195902,4.16062936,3454.0,3453.1,2.4255]
[1718698195903,3.858,3454.0,3453.1,2.4255]
[1718698196109,0.0264162,3453.6,3453.1,2.4255]
[1718698196275,0.858,3454.0,3453.1,2.4255]
[1718698196475,0.02640257,3453.5,3453.1,2.4255]
[1718698196877,3.0,3454.2,3453.3,0.858]
[1718698197200,0.858,3454.4,3453.4,2.4083]
[1718698197776,3.30237965,3454.6,3453.5,0.858]
[1718698198003,0.858,3454.4,3453.5,0.858]
[1718698199119,3.30237965,3454.6,3453.5,1.18463]
[1718698199287,3.858,3454.6,3453.7,0.858]
[1718698200112,3.0,3454.6,3453.7,0.858]
[1718698200278,0.858,3454.5,3453.7,0.858]
[1718698200477,0.858,3454.5,3453.6,2.3673]
[1718698200478,0.81881828,3454.4,3453.6,2.3673]
[1718698202107,1.67681828,3454.4,3453.6,2.3673]
[1718698203519,0.02676187,3454.3,3453.6,2.3673]
[1718698207114,0.88476187,3454.3,3453.6,2.3673]
[1718698210920,0.02676187,3454.3,3453.6,2.3673]
[1718698214022,0.02676187,3454.3,3454.2,2.4111]
[1718698214202,0.05,3455.0,3454.2,2.9611]
[1718698214520,0.05,3455.0,3454.6,0.858]
[1718698215520,0.05,3455.0,3454.3,0.858]
[1718698215918,0.05,3455.0,3454.4,0.55]
[1718698216101,0.05,3455.0,3454.5,0.38191]
[1718698217990,0.05,3455.0,3454.5,1.29779937]
[1718698218523,0.05,3455.0,3454.6,2.2691]
[1718698224501,0.05,3455.0,3454.6,3.1271]
[1718698225521,0.05,3455.0,3454.8,0.858]
[1718698225921,0.05,3455.0,3454.9,2.361]
[1718698226328,0.05,3455.0,3454.9,2.911]
[1718698226524,0.05,3455.0,3454.9,3.2879]
[1718698226933,0.05,3455.0,3454.9,4.1459]
[1718698239826,0.05,3455.0,3454.9,7.2019]
[1718698240163,2.3977,3457.0,3454.9,7.2019]
[1718698240164,2.3977,3457.0,3455.2,2.3147]
[1718698240347,2.3977,3457.0,3456.5,0.858]
[1718698240860,2.3977,3457.0,3456.3,0.858]
[1718698245373,2.3977,3457.0,3456.1,2.3147]
[1718698245567,2.3977,3457.0,3456.3,0.858]
[1718698247172,2.3977,3457.0,3456.1,2.3147]
[1718698247173,2.3977,3457.0,3455.4,2.4844]
[1718698247346,2.3977,3457.0,3456.2,0.858]
[1718698247546,5.3977,3457.0,3456.2,0.858]
[1718698247976,5.3977,3457.0,3456.0,0.858]
[1718698248347,0.858,3456.9,3456.0,0.858]
[1718698248546,3.858,3456.9,3456.0,0.858]
[1718698250169,3.858,3456.9,3455.5,0.302147]
[1718698250394,2.2859,3456.3,3454.8,2.4017]
[1718698250555,2.2859,3456.3,3455.4,3.187]
[1718698250753,2.2859,3456.3,3455.6,0.858]
[1718698251259,2.2859,3456.3,3455.4,2.329]
[1718698251469,2.2859,3456.3,3455.8,0.858]
[1718698253095,2.4205,3456.6,3456.0,0.858]
[1718698253252,3.0,3456.8,3456.0,0.858]
[1718698253453,0.858,3456.8,3456.0,0.858]
[1718698253664,3.858,3456.8,3456.0,0.858]
[1718698256189,3.06075,3456.7,3454.7,2.4395]
[1718698256359,3.0,3456.6,3455.6,0.858]
[1718698256552,2.4329,3456.7,3455.8,0.858]
[1718698256553,5.4329,3456.7,3455.8,0.858]
[1718698257082,3.0,3456.6,3456.0,0.858]
[1718698257470,2.4329,3456.7,3456.0,0.858]
[1718698260888,3.2909,3456.7,3455.7,0.858]
[1718698261058,3.0,3456.6,3455.7,0.858]
[1718698261689,3.0,3456.6,3455.3,2.476]
[1718698261890,3.0,3456.6,3455.6,0.858]
[1718698262089,3.0,3456.6,3455.7,0.55]
[1718698264606,2.2948,3456.4,3455.3,2.476]
[1718698264898,2.2948,3455.9,3454.9,2.4974]
[1718698265068,0.858,3455.7,3454.9,2.4974]
[1718698265263,3.0,3455.8,3455.0,0.858]
[1718698265589,0.858,3455.6,3453.8,2.4974]
[1718698265796,0.858,3455.6,3454.5,0.858]
[1718698266157,0.858,3455.4,3454.5,0.858]
[1718698267384,3.0,3455.8,3453.8,4.5514]
[1718698267588,0.73488,3455.8,3453.9,0.45514]
[1718698267888,2.3651,3455.5,3453.9,0.45514]
[1718698268085,5.72934567,3455.5,3453.9,0.45514]
[1718698268288,6.10425228,3455.5,3453.9,0.45514]
[1718698269310,2.054,3455.2,3453.3,2.4178]
[1718698269597,2.2702,3455.1,3453.3,2.4178]
[1718698269901,0.73242,3455.0,3453.4,0.24178]
[1718698270205,3.73242,3455.0,3453.4,0.24178]
[1718698271211,3.73242,3455.0,3453.5,0.55]
[1718698272374,6.73242,3455.0,3453.5,0.55]
[1718698272707,2.054,3454.8,3453.3,2.4178]
[1718698272912,0.95255723,3454.7,3453.4,0.79178]
[1718698273089,3.95255723,3454.7,3453.4,0.79178]
[1718698273288,3.95255723,3454.7,3453.4,0.55]
[1718698273484,2.4835,3454.6,3453.4,0.55]
[1718698273684,5.4835,3454.6,3453.4,0.55]
[1718698275911,5.4835,3454.6,3453.1,0.55]
[1718698277605,5.4835,3454.6,3453.0,0.55]
[1718698277807,0.43889037,3454.5,3453.0,0.77538]
[1718698278015,3.43889037,3454.5,3453.0,0.77538]
[1718698278918,2.3908,3454.4,3453.0,0.77538]
[1718698279090,5.3908,3454.4,3453.0,0.77538]
[1718698279411,5.77856719,3454.4,3453.0,0.55]
[1718698279620,0.38776719,3454.3,3452.7,0.55]
[1718698279818,2.054,3453.5,3452.5,2.3919]
[1718698279984,2.3908,3453.4,3452.6,0.23919]
[1718698280179,4.4448,3453.4,3451.6,2.3919]
[1718698280400,2.3908,3453.4,3451.6,2.3919]
[1718698280981,2.054,3453.2,3451.6,2.3919]
[1718698281182,2.054,3453.2,3451.7,0.23919]
[1718698282386,2.054,3453.2,3451.8,0.55]
[1718698283118,3.0,3453.3,3451.8,0.55]
[1718698283315,4.4448,3453.4,3451.8,0.55]
[1718698283695,3.0,3453.3,3451.8,0.55]
[1718698283932,3.0,3453.3,3451.9,0.318109]
[1718698284097,3.0,3453.3,3452.0,0.55]
[1718698285510,3.0,3453.3,3451.9,0.318109]
[1718698285710,3.0,3453.1,3451.6,2.3919]
[1718698285920,2.4921,3452.9,3451.0,2.4539]
[1718698286522,2.87099201,3452.9,3451.0,2.4539]
[1718698286700,3.0,3452.8,3451.0,2.4539]
[1718698286886,3.0,3452.8,3451.1,1.1168328]
[1718698287087,3.41071157,3452.8,3451.1,1.1168328]
[1718698287713,3.41071157,3452.8,3451.1,0.5668328]
[1718698287892,0.41071157,3452.7,3451.1,0.5668328]
[1718698288623,3.0,3452.5,3451.1,0.5668328]
[1718698288827,3.0,3452.4,3451.0,2.4539]
[1718698289121,3.0,3452.4,3451.1,2.054]
[1718698289299,3.0,3452.8,3451.1,2.054]
[1718698289499,0.43878931,3452.7,3451.1,2.054]
[1718698289840,0.43878931,3452.7,3451.2,0.55]
[1718698289996,0.43878931,3452.7,3451.3,0.50579]
[1718698290194,0.43878931,3452.7,3451.4,0.55]
[1718698290420,3.0,3452.8,3451.5,4.4973]
[1718698290699,2.4921,3452.9,3451.6,0.60793114]
[1718698290890,3.38840548,3452.9,3451.6,0.55]
[1718698291232,3.43878931,3452.8,3451.7,0.50473]
[1718698291527,3.43878931,3452.8,3451.8,0.55]
[1718698297243,3.43878931,3452.8,3451.5,2.4433]
[1718698297401,0.45751617,3452.7,3450.4,4.3893]
[1718698297731,0.41065735,3452.6,3450.6,2.3353]
[1718698297895,0.45751617,3452.5,3450.6,2.3353]
[1718698298823,0.45751617,3452.5,3450.7,0.55]
[1718698299007,2.46,3452.4,3450.7,0.55]
[1718698299208,0.45751617,3452.3,3450.7,0.55]
[1718698299515,0.79715162,3452.2,3450.8,0.28853]
[1718698299725,2.054,3452.1,3450.9,0.55]
[1718698299900,2.054,3452.1,3450.7,0.55]
[1718698300107,0.45751617,3452.0,3450.6,2.3353]
[1718698300339,3.45751617,3452.0,3450.6,2.3353]
[1718698300502,2.4201,3451.9,3450.6,2.3353]
[1718698300704,6.01439598,3451.9,3450.7,0.23353]
[1718698302209,6.01439598,3451.9,3450.8,0.55]
[1718698305235,5.4201,3451.9,3450.8,0.55]
[1718698305423,3.0,3452.0,3450.9,0.05794865]
[1718698305736,5.2923,3452.3,3451.0,0.55]
[1718698305900,5.2923,3452.3,3451.1,0.05794578]
[1718698306103,6.37268162,3452.3,3451.2,2.4312]
[1718698307136,7.24085514,3452.3,3451.2,2.4312]
[1718698308756,7.54306573,3452.3,3451.2,2.4312]
[1718698310952,7.54306573,3452.3,3451.3,0.0579455]
[1718698311135,6.05202676,3452.3,3451.3,0.0579455]
[1718698311331,3.75972676,3452.3,3451.3,0.0579455]
[1718698311649,3.0,3452.2,3451.3,0.0579455]
[1718698311955,0.30221059,3452.3,3451.3,0.0579455]
[1718698312447,0.30221059,3452.3,3451.5,2.3346]
[1718698312653,2.65,3452.7,3451.6,0.55]
[1718698313663,3.0,3452.6,3451.6,0.55]
[1718698313838,3.45751617,3452.6,3451.6,0.55]
[1718698314163,3.45751617,3452.6,3451.5,2.3346]
[1718698314326,4.3984881,3452.6,3451.5,2.3346]
[1718698315143,3.45751617,3452.6,3451.5,2.3346]
[1718698315351,3.0,3452.6,3451.6,0.05793662]
[1718698315662,3.0,3452.6,3451.5,2.3346]
[1718698318666,3.0,3452.6,3451.6,0.05793669]
[1718698320178,3.0,3452.6,3451.5,2.3346]
[1718698320381,3.0,3452.6,3451.6,0.263272]
[1718698320829,3.0,3452.6,3451.5,2.3346]
[1718698321034,2.79341617,3452.5,3451.1,2.4307]
[1718698321239,3.0,3452.4,3451.1,2.4307]
[1718698321535,3.45751617,3452.4,3451.1,2.4307]
[1718698323839,3.0,3452.4,3451.2,0.60794539]
[1718698324044,5.3359,3452.5,3451.3,2.35343903]
[1718698324272,5.3359,3452.5,3451.4,0.2903439]
[1718698324572,5.3359,3452.5,3451.5,0.05793877]
[1718698325083,3.0,3452.5,3451.5,0.05793877]
[1718698325283,3.30229462,3452.6,3451.4,0.2903439]
[1718698325458,3.75981079,3452.6,3451.5,0.55]
[1718698325659,3.75981079,3452.6,3451.6,0.31358439]
[1718698326275,3.75981079,3452.6,3451.8,2.2955]
[1718698326486,3.45751617,3452.6,3451.8,2.2955]
[1718698330891,3.0,3452.6,3451.8,2.2955]
[1718698331586,3.0,3452.6,3451.9,0.05793299]
[1718698331757,3.0,3452.6,3452.0,0.2353433]
[1718698332092,2.65,3452.7,3452.1,2.43242736]
[1718698332248,2.65,3452.7,3452.1,2.98242736]
[1718698333597,3.0,3452.6,3452.1,2.98242736]
[1718698333908,3.0,3452.6,3452.1,2.9245]
[1718698334301,3.0,3452.6,3451.3,2.4968]
[1718698334458,3.45751617,3452.6,3451.4,0.55]
[1718698342884,3.0,3452.6,3451.4,0.55]
[1718698343074,3.0,3452.6,3451.5,0.0579394]
[1718698344296,3.0,3452.6,3451.4,0.55]
[1718698345465,3.0,3452.6,3451.5,0.05793936]
[1718698345665,3.0,3452.6,3451.6,0.86047394]
[1718698346904,3.0,3452.6,3451.7,0.05793518]
[1718698347204,3.0,3452.6,3451.8,2.90342749]
[1718698347379,2.65,3452.7,3451.8,2.8455]
[1718698349377,2.4892,3452.6,3451.8,0.55]
[1718698349577,2.4892,3452.6,3451.8,0.36567221]
[1718698349872,2.4892,3452.6,3451.9,0.55]
[1718698350277,2.4892,3452.6,3451.5,2.3452]
[1718698350908,5.4892,3452.6,3451.5,2.3452]
[1718698351108,5.4892,3452.6,3450.8,2.3452]
[1718698351403,0.81392,3452.5,3450.9,0.257873]
[1718698351606,3.81392,3452.5,3450.9,2.311873]
[1718698352681,3.81392,3452.5,3451.0,0.55]
[1718698354823,2.3774,3452.4,3451.0,0.55]
[1718698355018,5.3774,3452.4,3451.0,0.55]
[1718698355219,6.561532,3452.4,3451.1,0.5207073]
[1718698355516,6.561532,3452.4,3451.2,0.55]
[1718698359929,6.561532,3452.4,3451.3,0.0579397]
[1718698360121,6.561532,3452.4,3451.4,0.55]
[1718698360921,6.561532,3452.4,3451.2,0.55]
[1718698361618,6.561532,3452.4,3451.7,0.857]
[1718698364837,0.7375452,3452.3,3451.7,0.857]
[1718698365008,3.7375452,3452.3,3451.7,0.857]
[1718698370006,3.0,3452.3,3451.9,0.857]
[1718698370207,2.3774,3452.4,3452.1,0.857]
[1718698370413,2.3774,3452.4,3452.1,0.8377]
[1718698372454,3.0,3452.6,3452.1,0.8377]
[1718698372638,2.65,3452.7,3452.5,0.857]
[1718698372805,2.3638,3453.4,3452.5,0.857]
[1718698373130,2.3638,3453.4,3453.0,0.857]
[1718698373335,0.23638,3453.3,3453.0,0.857]
[1718698375437,0.23638,3453.3,3452.3,2.056]
[1718698376136,3.23638,3453.3,3452.3,2.056]
[1718698376341,3.23638,3453.3,3452.4,0.05792347]
[1718698378647,3.23638,3453.3,3452.3,2.056]
[1718698378847,3.23638,3453.3,3452.4,0.2056]
[1718698380247,3.23638,3453.3,3452.4,0.26352352]
[1718698381246,3.23638,3453.3,3452.4,0.2056]
[1718698382149,2.3384,3453.2,3451.9,2.3689]
[1718698382322,2.3384,3453.2,3451.3,2.3546]
[1718698382522,2.76493284,3453.1,3451.3,2.3546]
[1718698382941,2.36,3452.9,3451.3,2.3546]
[1718698384341,2.76493284,3452.9,3451.2,2.056]
[1718698384654,2.4983,3452.7,3451.3,0.55]
[1718698387061,2.4983,3452.7,3451.4,0.55]
[1718698387418,2.4983,3452.7,3451.3,0.55]
[1718698389060,2.90323284,3452.7,3450.7,2.2951]
[1718698389268,2.2953,3452.5,3450.9,2.056]
[1718698389755,2.2953,3452.4,3450.9,2.056]
[1718698390254,2.2953,3452.3,3450.9,2.056]
[1718698390472,2.2953,3452.3,3450.2,2.2951]
[1718698390631,2.2953,3452.3,3450.5,2.056]
[1718698390954,2.3403,3452.1,3450.5,2.056]
[1718698391141,2.3403,3452.0,3450.5,2.056]
[1718698391344,5.3403,3452.0,3450.5,2.056]
[1718698391657,5.3403,3452.0,3450.6,0.55]
[1718698392146,3.0,3451.9,3450.6,0.55]
[1718698392326,0.46841097,3451.8,3450.6,0.8106]
[1718698393619,2.4197,3451.7,3450.6,2.606]
[1718698393852,5.4197,3451.7,3450.6,2.606]
[1718698396720,5.4197,3451.7,3449.7,1.160802]
[1718698396721,3.0,3451.6,3449.7,2.4972]
[1718698397052,2.4611,3451.5,3449.7,4.5532]
[1718698397355,2.4611,3451.3,3449.7,4.5532]
[1718698397651,2.4611,3451.2,3450.3,0.858]
[1718698397857,5.4611,3451.2,3450.3,0.858]
[1718698399535,5.4611,3451.2,3449.8,2.059]
[1718698399734,2.4611,3451.2,3449.8,2.059]
[1718698399939,0.45289315,3451.1,3449.9,0.45562]
[1718698400135,3.45289315,3451.1,3449.9,0.45562]
[1718698400756,2.4145,3451.0,3449.9,0.45562]
[1718698400958,5.4145,3451.0,3449.9,0.45562]
[1718698401947,5.4145,3451.0,3449.8,2.059]
[1718698404966,5.4145,3451.0,3449.4,2.4413]
[1718698405170,5.4145,3451.0,3449.7,2.059]
[1718698405661,5.4145,3451.0,3449.8,0.55]
[1718698408365,2.2907,3450.9,3449.8,0.55]
[1718698408539,5.2907,3450.9,3449.8,0.8109]
[1718698408860,2.2907,3450.9,3449.8,0.8109]
[1718698413662,2.2907,3450.9,3449.9,0.05796684]
[1718698418675,2.2907,3450.9,3450.1,2.059]
[1718698418878,2.2907,3450.9,3450.2,0.05795964]
[1718698419045,2.379,3451.2,3450.3,1.00347596]
[1718698419446,2.379,3451.2,3450.8,0.858]
[1718698420076,2.379,3451.2,3450.3,0.55]
[1718698420278,2.379,3451.2,3450.1,0.55]
[1718698420448,2.379,3451.2,3450.7,0.858]
[1718698420645,0.2379,3451.1,3450.7,0.858]
[1718698420842,3.2379,3451.1,3450.7,0.858]
[1718698424356,3.0,3451.1,3450.7,0.858]
[1718698424558,2.379,3451.2,3450.7,0.858]
[1718698426151,2.3051,3451.1,3449.6,2.3235]
[1718698426351,2.3051,3451.0,3450.2,0.858]
[1718698426781,2.3247,3450.9,3450.2,0.858]
[1718698426959,2.3247,3450.7,3450.2,0.858]
[1718698428283,2.3247,3450.7,3449.0,2.276]
[1718698428457,5.3247,3450.7,3449.0,2.276]
[1718698428656,5.3247,3450.7,3450.0,0.858]
[1718698430670,5.3247,3450.7,3450.2,0.858]
[1718698430876,0.615717,3450.6,3450.2,0.858]
[1718698431190,3.615717,3450.6,3450.2,0.858]
[1718698432087,2.2752,3450.5,3449.8,0.858]
[1718698432391,5.2752,3450.5,3449.8,0.858]
[1718698436891,5.2752,3450.5,3449.0,2.276]
[1718698437059,5.2752,3450.5,3449.9,0.858]
[1718698438390,5.2752,3450.5,3449.1,0.7776]
[1718698444074,5.2752,3450.5,3449.2,0.05797236]
[1718698444269,5.2752,3450.5,3449.1,0.7776]
[1718698444270,5.2752,3450.5,3449.4,2.3467]
[1718698444460,2.2592,3450.8,3449.5,0.05796355]
[1718698444664,2.2592,3450.8,3449.6,0.79046636]
[1718698452982,2.2592,3450.8,3449.6,0.55]
[1718698453183,2.2592,3450.8,3449.5,0.55]
[1718698453400,2.56119264,3450.8,3449.5,0.55]
[1718698453702,3.0,3450.7,3449.5,0.55]
[1718698454074,2.4773,3450.6,3449.5,0.55]
[1718698454268,0.57792926,3450.5,3449.5,0.55]
[1718698454474,3.57792926,3450.5,3449.5,0.55]